bitfinex/quotes_SOLUSD_20241209
["timestamp","ask_amount","ask_price","bid_price","bid_amount"]
[1733733182661,20.0,228.87,228.78,0.74813407]
[1733733183161,20.0,228.87,228.8,0.74813407]
[1733733183479,20.0,228.87,228.79,0.74813407]
[1733733183642,20.0,228.87,228.77,4.9478]
[1733733183643,20.0,228.83,228.77,0.74813407]
[1733733184028,20.0,228.83,228.8,5.69593407]
[1733733184259,23.776884,228.91,228.8,5.69593407]
[1733733184565,20.0,228.88,228.82,0.74813407]
[1733733185063,1.78148432,228.92,228.82,5.69593407]
[1733733185366,20.0,228.96,228.84,5.69593407]
[1733733186253,21.76587102,228.96,228.84,0.74813407]
[1733733186436,21.76587102,228.96,228.82,5.69593407]
[1733733186763,20.0,228.92,228.82,5.69593407]
[1733733186961,20.0,228.88,228.82,5.69593407]
[1733733187648,20.0,228.92,228.82,5.69593407]
[1733733188643,20.0,228.92,228.84,0.74813407]
[1733733189461,1.76587102,228.96,228.87,0.74813407]
[1733733189772,1.72439983,228.98,228.91,0.74813407]
[1733733189933,3.88928076,229.01,228.9,4.9478]
[1733733191252,20.0,228.98,228.9,4.9478]
[1733733191772,5.6679925,229.01,228.92,0.74813407]
[1733733192067,5.6679925,229.01,228.94,0.74813407]
[1733733192673,5.6679925,229.01,228.89,0.74813407]
[1733733192886,3.88928076,229.0,228.89,5.69593407]
[1733733193050,20.0,228.97,228.89,5.69593407]
[1733733193739,20.0,228.97,228.91,0.74813407]
[1733733193965,11.50038076,229.0,228.94,0.74813407]
[1733733194271,7.6111,229.0,228.94,0.74813407]
[1733733195154,20.0,228.97,228.94,0.74813407]
[1733733195557,1.78761467,229.01,228.94,0.74813407]
[1733733195882,24.9478,229.05,228.94,0.74813407]
[1733733196265,28.83708076,229.05,228.94,0.74813407]
[1733733197673,8.83708076,229.05,228.96,5.69593407]
[1733733197872,8.83708076,229.05,228.98,5.69593407]
[1733733198071,1.76951358,229.06,228.98,5.69593407]
[1733733198275,3.88928076,229.11,229.01,0.74813407]
[1733733198867,3.88928076,229.11,229.03,0.74813407]
[1733733199396,1.74774394,229.13,229.03,8.70253407]
[1733733199607,1.6501,229.19,229.05,0.74813407]
[1733733200107,1.6501,229.19,229.03,13.65033407]
[1733733200262,1.6501,229.19,229.05,0.74813407]
[1733733200461,1.6501,229.19,229.03,13.65033407]
[1733733200993,3.38247571,229.19,229.03,13.65033407]
[1733733201167,1.6501,229.19,229.06,5.69593407]
[1733733201370,1.6501,229.19,229.08,0.74813407]
[1733733202184,8.2693,229.19,229.04,0.74813407]
[1733733202603,20.0,229.16,229.04,0.74813407]
[1733733202770,20.0,229.16,229.03,7.9544]
[1733733202965,20.0,229.16,229.03,6.4524]
[1733733203994,20.0,229.16,229.04,0.74813407]
[1733733204990,20.0,229.16,229.05,4.9478]
[1733733205493,8.2693,229.19,229.07,5.69593407]
[1733733206701,20.0,229.16,229.07,5.69593407]
[1733733207008,1.7813903,229.2,229.1,4.9478]
[1733733207193,20.0,229.22,229.1,4.9478]
[1733733207515,6.4524,229.22,229.11,0.74813407]
[1733733207677,6.4524,229.22,229.13,0.74813407]
[1733733207872,3.26214449,229.25,229.11,0.74813407]
[1733733208077,3.88928076,229.22,229.13,0.74813407]
[1733733208277,3.88928076,229.22,229.12,4.9478]
[1733733208984,20.0,229.21,229.09,7.26743407]
[1733733209190,20.0,229.22,229.09,7.26743407]
[1733733209393,3.88928076,229.2,229.09,2.31963407]
[1733733212005,3.88928076,229.2,229.09,1.5715]
[1733733212520,3.88928076,229.2,229.05,0.74813407]
[1733733212990,3.88928076,229.2,229.07,5.69593407]
[1733733213786,3.88928076,229.2,229.11,4.9478]
[1733733213991,3.88928076,229.2,229.14,0.74813407]
[1733733214198,3.88928076,229.2,229.12,0.74813407]
[1733733214611,3.88928076,229.2,229.1,0.74813407]
[1733733215114,3.88928076,229.2,229.13,0.74813407]
[1733733216320,3.88928076,229.2,229.11,0.74813407]
[1733733216900,3.88928076,229.2,229.13,0.74813407]
[1733733218713,3.88928076,229.2,229.1,2.27973407]
[1733733218915,3.88928076,229.2,229.08,5.69593407]
[1733733219404,3.88928076,229.2,229.1,0.74813407]
[1733733219611,3.88928076,229.2,229.12,0.74813407]
[1733733219822,3.88928076,229.2,229.14,4.9478]
[1733733219983,3.88928076,229.2,229.14,5.69593407]
[1733733220187,3.88928076,229.2,229.16,0.74813407]
[1733733221218,1.73724449,229.25,229.16,5.69593407]
[1733733221409,3.88928076,229.26,229.18,5.69593407]
[1733733221586,3.88928076,229.35,229.18,5.69593407]
[1733733221795,4.9478,229.29,229.2,0.74813407]
[1733733222098,3.88928076,229.28,229.2,0.74813407]
[1733733222296,1.5591,229.27,229.08,1.5625]
[1733733222602,3.88928076,229.26,229.08,1.5625]
[1733733222999,20.0,229.24,229.08,1.5625]
[1733733223224,11.5591,229.27,229.08,1.5625]
[1733733223225,20.0,229.25,229.08,1.5625]
[1733733223523,23.88928076,229.24,229.08,1.5625]
[1733733223703,20.0,229.23,229.08,1.5625]
[1733733224230,3.88928076,229.22,228.98,1.5952]
[1733733224634,23.88928076,229.22,228.98,1.5952]
[1733733224923,20.0,229.2,228.98,1.5952]
[1733733225226,3.88928076,229.19,228.98,1.5952]
[1733733225391,3.88928076,229.19,228.99,6.5453]
[1733733226248,20.0,229.17,228.99,6.5453]
[1733733226394,20.0,229.15,228.99,6.5453]
[1733733226601,20.0,229.13,228.99,6.5453]
[1733733229134,20.0,229.05,228.99,6.5453]
[1733733230334,20.0,229.05,228.94,6.5901]
[1733733231927,20.0,229.05,228.87,22.58592353]
[1733733231928,20.0,228.97,228.87,6.6251]
[1733733232535,20.0,229.01,228.87,6.6251]
[1733733232739,20.0,228.97,228.87,6.6251]
[1733733233841,1.5977,229.11,228.87,11.6251]
[1733733234127,1.5977,229.11,228.93,12.58592353]
[1733733234333,1.5977,229.11,228.94,20.47932353]
[1733733234504,8.1697,229.16,228.94,26.13429159]
[1733733235238,8.1697,229.16,228.96,12.58592353]
[1733733235462,1.6281,229.16,228.99,17.58592353]
[1733733235735,1.6281,229.16,229.0,0.65472711]
[1733733236047,7.8447,229.22,229.0,13.24065064]
[1733733236412,11.73398076,229.22,229.02,18.68672353]
[1733733236607,11.73398076,229.22,229.03,0.65464168]
[1733733237133,3.88928076,229.21,229.03,0.65464168]
[1733733237343,3.88928076,229.21,229.02,6.1008]
[1733733237725,20.0,229.17,229.02,6.1008]
[1733733237940,20.0,229.09,228.95,6.1285]
[1733733239037,23.776884,229.08,228.95,6.1285]
[1733733239431,20.0,229.05,228.95,6.1285]
[1733733239946,20.0,229.14,228.95,6.1285]
[1733733240241,20.0,229.06,228.95,6.1285]
[1733733240879,23.776884,229.05,228.88,6.1992]
[1733733241025,20.0,229.02,228.88,6.1992]
[1733733241428,23.776884,229.01,228.88,6.1992]
[1733733242223,20.0,229.02,228.88,6.1992]
[1733733242551,20.0,228.98,228.88,6.1992]
[1733733244021,20.0,228.94,228.82,7.02004055]
[1733733244746,20.0,228.94,228.82,6.3648]
[1733733246165,20.0,228.9,228.76,6.0645]
[1733733246355,20.0,228.86,228.76,6.0645]
[1733733247030,20.0,228.86,228.7,5.0]
[1733733247031,20.0,228.82,228.7,6.184]
[1733733247537,20.0,228.78,228.69,0.5199605]
[1733733248540,23.776884,228.77,228.69,0.5199605]
[1733733248748,20.0,228.78,228.69,0.5199605]
[1733733248951,23.776884,228.79,228.69,0.5199605]
[1733733249826,23.776884,228.75,228.69,0.5199605]
[1733733250053,20.0,228.72,228.69,0.5199605]
[1733733251460,23.776884,228.71,228.69,0.5199605]
[1733733251865,23.776884,228.79,228.69,0.5199605]
[1733733252068,20.0,228.72,228.69,0.5199605]
[1733733252944,23.776884,228.71,228.69,0.5199605]
[1733733254462,1.750154,228.79,228.69,0.5199605]
[1733733254670,20.0,228.71,228.69,0.5199605]
[1733733256266,23.776884,228.7,228.69,0.5199605]
[1733733256507,23.776884,228.7,228.62,72.91666667]
[1733733257795,23.776884,228.66,228.62,72.91666667]
[1733733258096,20.0,228.63,228.62,72.91666667]
[1733733258885,43.776884,228.63,228.62,72.91666667]
[1733733259967,43.776884,228.63,228.62,64.30274816]
[1733733260168,43.776884,228.63,228.62,16.75274816]
[1733733260375,20.0,228.63,228.62,16.75274816]
[1733733260699,20.0,228.63,228.62,9.03174816]
[1733733261265,20.0,228.63,228.62,1e-08]
[1733733263512,10.0,228.63,228.62,1e-08]
[1733733264009,1.5264,228.67,228.62,1e-08]
[1733733266215,21.5264,228.67,228.62,1e-08]
[1733733269317,23.27776,228.67,228.62,1e-08]
[1733733270926,20.0,228.63,228.62,1e-08]
[1733733271250,20.0,228.63,228.54,0.03578723]
[1733733271411,19.5,228.63,228.54,0.03578723]
[1733733272314,5.0,228.6,228.54,0.03578723]
[1733733272737,5.0,228.6,228.46,0.5199605]
[1733733273310,10.0,228.6,228.46,0.5199605]
[1733733273512,20.0,228.57,228.46,0.5199605]
[1733733276369,20.0,228.49,228.46,0.5199605]
[1733733279232,21.76970696,228.49,228.46,0.5199605]
[1733733280069,1.76970696,228.49,228.46,0.5199605]
[1733733280365,6.274,228.52,228.46,0.5199605]
[1733733281465,20.0,228.49,228.46,0.5199605]
[1733733281972,1.72601484,228.52,228.46,0.5199605]
[1733733282156,21.6544,228.56,228.46,0.5199605]
[1733733284165,20.0,228.55,228.46,0.5199605]
[1733733286676,20.0,228.53,228.46,0.5199605]
[1733733287371,20.0,228.55,228.46,0.5199605]
[1733733291284,20.0,228.55,228.37,6.5545]
[1733733292559,20.0,228.53,228.37,6.5545]
[1733733294141,20.0,228.53,228.29,0.6932023]
[1733733294142,20.0,228.47,228.29,0.6932023]
[1733733294383,11.5172,228.51,228.29,0.6932023]
[1733733294384,20.0,228.46,228.29,0.03632132]
[1733733295090,6.5172,228.51,228.29,0.03632132]
[1733733295091,20.0,228.48,228.29,0.03632132]
[1733733295885,21.551,228.47,228.29,0.03632132]
[1733733296862,20.0,228.45,228.29,0.03632132]
[1733733298751,21.78235196,228.45,228.29,0.03632132]
[1733733301657,1.78235196,228.45,228.29,0.03632132]
[1733733301857,21.551,228.47,228.29,0.03632132]
[1733733302061,1.551,228.47,228.29,0.03632132]
[1733733302897,1.73062245,228.47,228.31,12.66668219]
[1733733303195,1.73062245,228.47,228.3,0.65693029]
[1733733303196,3.88928076,228.52,228.3,13.32361248]
[1733733303362,3.88928076,228.52,228.3,12.66668219]
[1733733303564,3.88928076,228.52,228.31,12.66668219]
[1733733303761,3.88928076,228.52,228.32,20.56538219]
[1733733303965,3.88928076,228.52,228.33,12.66668219]
[1733733304164,3.88928076,228.52,228.34,12.66668219]
[1733733304417,1.6214,228.66,228.41,23.776884]
[1733733304591,1.6214,228.66,228.42,0.65645722]
[1733733304963,1.6214,228.66,228.42,13.32313941]
[1733733305167,1.6214,228.66,228.43,36.44356619]
[1733733305372,1.6214,228.66,228.44,0.65640896]
[1733733305685,1.6214,228.66,228.45,8.0324]
[1733733306505,3.48255153,228.67,228.46,13.32305985]
[1733733306790,3.48255153,228.67,228.47,36.44356619]
[1733733306989,3.48255153,228.67,228.48,0.65625507]
[1733733307197,3.48255153,228.67,228.49,12.66668219]
[1733733307397,3.48255153,228.67,228.48,13.32293726]
[1733733307570,3.48255153,228.67,228.45,8.0324]
[1733733307893,3.48255153,228.67,228.48,12.66668219]
[1733733308133,1.73119153,228.67,228.52,36.44356619]
[1733733308269,1.6151,228.79,228.55,23.776884]
[1733733308602,1.6151,228.79,228.56,1.5679]
[1733733309105,17.507296,228.78,228.57,23.776884]
[1733733309692,17.507296,228.78,228.56,1.5679]
[1733733310674,20.0,228.75,228.56,1.5679]
[1733733311365,17.507296,228.78,228.57,23.776884]
[1733733311568,17.507296,228.78,228.59,23.776884]
[1733733311822,17.507296,228.78,228.56,1.5679]
[1733733312880,17.507296,228.78,228.51,6.112]
[1733733312881,20.0,228.75,228.51,7.7575]
[1733733313285,20.0,228.71,228.51,7.7575]
[1733733313690,20.0,228.71,228.51,6.112]
[1733733315594,21.7888327,228.71,228.51,6.112]
[1733733315795,1.7888327,228.71,228.51,6.112]
[1733733316000,8.0982,228.74,228.53,12.66668219]
[1733733316300,8.0982,228.74,228.57,1.581]
[1733733316301,1.6554,228.74,228.57,1.581]
[1733733317172,1.6554,228.74,228.57,14.24768219]
[1733733317376,1.6554,228.74,228.57,1.581]
[1733733318682,1.6554,228.74,228.57,14.24768219]
[1733733318896,1.6554,228.74,228.57,1.581]
[1733733319525,1.6554,228.74,228.51,20.42318219]
[1733733320100,1.6554,228.74,228.51,7.7565]
[1733733320727,1.6554,228.74,228.51,6.112]
[1733733320728,20.0,228.7,228.51,6.112]
[1733733322030,20.0,228.7,228.52,20.24379066]
[1733733322244,6.4433,228.73,228.55,20.24379066]
[1733733322411,6.4433,228.73,228.56,20.24379066]
[1733733322732,6.4433,228.73,228.55,20.89985952]
[1733733322942,6.4433,228.73,228.55,0.65606886]
[1733733323234,6.4433,228.73,228.55,20.24379066]
[1733733323436,6.4433,228.73,228.55,20.89986793]
[1733733323619,6.4433,228.73,228.51,26.35579066]
[1733733324252,6.4433,228.73,228.51,6.112]
[1733733324612,6.4433,228.73,228.31,34.565982]
[1733733324613,20.0,228.7,228.46,26.59719066]
[1733733324818,20.0,228.7,228.47,20.24379066]
[1733733325542,20.0,228.7,228.46,26.59719066]
[1733733325915,20.0,228.7,228.47,20.24379066]
[1733733326120,20.0,228.7,228.46,6.3534]
[1733733326121,20.0,228.7,228.51,20.24379066]
[1733733326422,20.0,228.7,228.5,20.24379066]
[1733733326845,20.0,228.7,228.52,20.24379066]
[1733733327212,20.0,228.7,228.5,20.24379066]
[1733733328052,20.0,228.7,228.48,44.02067466]
[1733733328352,1.5451,228.69,228.46,6.3534]
[1733733328728,1.5451,228.69,228.47,20.24379066]
[1733733329641,1.5451,228.69,228.48,20.24379066]
[1733733330019,1.5451,228.69,228.46,6.3534]
[1733733330213,1.5451,228.69,228.47,20.24379066]
[1733733330413,1.5451,228.69,228.46,26.59719066]
[1733733331023,1.5451,228.69,228.47,20.24379066]
[1733733331230,1.5451,228.69,228.48,20.24379066]
[1733733332033,1.5451,228.69,228.46,6.3534]
[1733733332034,1.5451,228.69,228.52,20.24379066]
[1733733332241,1.5451,228.69,228.55,20.24379066]
[1733733332433,1.5451,228.69,228.53,20.89993972]
[1733733332630,1.5451,228.69,228.53,0.65614906]
[1733733333325,1.5451,228.69,228.53,20.89993972]
[1733733333751,1.5451,228.69,228.54,20.24379066]
[1733733334050,1.5451,228.69,228.54,44.67675057]
[1733733334224,1.5451,228.69,228.54,24.43295991]
[1733733334437,1.5451,228.69,228.5,20.24379066]
[1733733334644,1.5451,228.69,228.49,44.02067466]
[1733733335154,1.5451,228.69,228.48,20.24379066]
[1733733335443,1.5451,228.69,228.49,20.24379066]
[1733733336344,1.5451,228.69,228.52,44.02067466]
[1733733336553,1.5451,228.69,228.51,23.776884]
[1733733337151,1.5451,228.69,228.51,44.02067466]
[1733733337333,1.5451,228.69,228.51,23.776884]
[1733733337666,1.5451,228.69,228.5,20.24379066]
[1733733337949,1.5451,228.69,228.51,20.24379066]
[1733733338521,1.5451,228.69,228.51,20.89997955]
[1733733338726,1.5451,228.69,228.52,20.24379066]
[1733733338966,1.5451,228.69,228.56,20.24379066]
[1733733339132,1.5451,228.69,228.54,20.89979709]
[1733733339337,1.5451,228.69,228.57,20.24379066]
[1733733339733,1.5451,228.69,228.59,20.24379066]
[1733733340042,6.4433,228.73,228.61,20.24379066]
[1733733340539,1.5021,228.75,228.64,20.24379066]
[1733733340737,1.5021,228.75,228.65,0.65578721]
[1733733341045,1.5021,228.75,228.65,20.89957787]
[1733733341250,6.2922,228.79,228.67,20.24379066]
[1733733341449,6.2922,228.79,228.67,20.89949447]
[1733733341758,6.2922,228.79,228.67,0.65570381]
[1733733342641,6.2922,228.79,228.63,20.24379066]
[1733733342850,6.2922,228.79,228.62,23.776884]
[1733733342851,20.0,228.76,228.62,23.776884]
[1733733343151,20.0,228.76,228.65,44.02067466]
[1733733343352,20.0,228.76,228.66,0.6557234]
[1733733343542,20.0,228.76,228.62,44.02067466]
[1733733343938,20.0,228.76,228.6,44.02067466]
[1733733344162,20.0,228.76,228.6,23.776884]
[1733733344336,20.0,228.76,228.59,20.89956103]
[1733733344337,20.0,228.76,228.58,6.2966]
[1733733344538,20.0,228.76,228.63,20.24379066]
[1733733344738,20.0,228.76,228.63,20.89964511]
[1733733345762,20.0,228.76,228.64,20.24379066]
[1733733346064,20.0,228.76,228.64,0.65581176]
[1733733346274,20.0,228.76,228.61,20.24379066]
[1733733346433,20.0,228.76,228.62,23.776884]
[1733733346632,20.0,228.76,228.61,23.776884]
[1733733346838,20.0,228.76,228.58,6.2966]
[1733733347371,20.0,228.76,228.58,27.1963625]
[1733733347672,20.0,228.76,228.59,20.24379066]
[1733733347840,20.0,228.76,228.58,27.1963625]
[1733733348254,20.0,228.76,228.59,20.24379066]
[1733733349044,20.0,228.76,228.58,20.24379066]
[1733733349661,20.0,228.76,228.54,0.65598252]
[1733733349662,20.0,228.76,228.57,20.24379066]
[1733733349854,20.0,228.76,228.58,0.655992]
[1733733350974,1.5181,228.75,228.58,0.655992]
[1733733351257,1.5181,228.75,228.54,20.89988171]
[1733733351665,20.0,228.71,228.52,20.24379066]
[1733733351847,1.5181,228.7,228.52,20.24379066]
[1733733352037,1.5181,228.7,228.5,20.24379066]
[1733733352486,20.0,228.66,228.48,27.28777752]
[1733733352634,20.0,228.66,228.5,20.24379066]
[1733733353037,20.0,228.66,228.49,20.24379066]
[1733733353781,1.5181,228.65,228.48,0.65608686]
[1733733355170,1.5181,228.65,228.52,20.24379066]
[1733733355383,1.5181,228.65,228.53,20.89984756]
[1733733355697,1.5181,228.65,228.54,20.24379066]
[1733733356250,1.5181,228.65,228.54,20.89985896]
[1733733356871,1.5181,228.65,228.52,20.24379066]
[1733733357102,1.5181,228.65,228.53,0.6561062]
[1733733357255,1.5181,228.65,228.53,20.89989686]
[1733733357986,6.1563,228.69,228.59,20.24379066]
[1733733358174,6.1563,228.69,228.6,20.899704]
[1733733358484,1.6581,228.7,228.6,20.899704]
[1733733359593,1.6581,228.7,228.54,6.1737]
[1733733359594,1.6581,228.7,228.56,20.24379066]
[1733733359759,1.6581,228.7,228.55,0.65593726]
[1733733360466,1.6581,228.7,228.55,20.89972792]
[1733733360957,1.6581,228.7,228.55,0.65593726]
[1733733361176,1.6581,228.7,228.5,20.89984923]
[1733733361493,20.0,228.66,228.47,20.24379066]
[1733733361784,20.0,228.66,228.49,20.24379066]
[1733733361970,20.0,228.66,228.49,20.90001228]
[1733733362362,20.0,228.66,228.5,20.24379066]
[1733733362668,20.0,228.66,228.53,20.24379066]
[1733733362974,20.0,228.66,228.54,20.89988975]
[1733733363487,20.0,228.66,228.55,20.24379066]
[1733733363860,20.0,228.66,228.56,0.6560494]
[1733733364202,0.12238784,228.74,228.65,10.0]
[1733733364520,1.6442,228.88,228.66,0.65541826]
[1733733364667,1.6442,228.88,228.58,20.24379066]
[1733733364668,8.0513,228.87,228.59,0.65571365]
[1733733364861,1.6051,228.84,228.57,0.65583271]
[1733733365063,1.6051,228.84,228.57,20.89962337]
[1733733365278,1.6051,228.84,228.59,20.24379066]
[1733733365487,1.6051,228.84,228.61,20.24379066]
[1733733365668,20.0,228.82,228.62,0.6558423]
[1733733366297,20.0,228.82,228.6,20.24379066]
[1733733366478,20.0,228.82,228.61,0.65585393]
[1733733367399,20.0,228.82,228.61,20.89964459]
[1733733367696,20.0,228.82,228.61,0.65585393]
[1733733368273,6.692944,228.88,228.55,20.24379066]
[1733733368274,20.0,228.74,228.55,20.24379066]
[1733733368587,23.776884,228.73,228.52,0.65601834]
[1733733369110,20.0,228.66,228.49,20.89992464]
[1733733369608,20.0,228.66,228.5,20.24379066]
[1733733369777,20.0,228.66,228.51,20.89998697]
[1733733369969,20.0,228.66,228.52,20.24379066]
[1733733370302,20.0,228.66,228.51,0.65619631]
[1733733370303,20.0,228.66,228.5,20.24379066]
[1733733370501,20.0,228.66,228.5,0.6561914]
[1733733371184,20.0,228.66,228.45,21.25616442]
[1733733371584,20.0,228.62,228.45,0.35614547]
[1733733371975,20.0,228.58,228.45,0.35614547]
[1733733372595,20.0,228.66,228.45,0.35614547]
[1733733372875,20.0,228.66,228.47,20.24379066]
[1733733373078,20.0,228.66,228.48,20.90012777]
[1733733373277,20.0,228.66,228.5,20.24379066]
[1733733373504,20.0,228.66,228.51,20.89998474]
[1733733373710,20.0,228.66,228.51,0.65619408]
[1733733374712,1.5249,228.68,228.53,20.24379066]
[1733733374878,1.5249,228.68,228.45,0.35614547]
[1733733374879,1.5249,228.68,228.5,20.24379066]
[1733733375079,1.5249,228.68,228.51,20.24379066]
[1733733375408,1.5249,228.68,228.52,20.89996146]
[1733733375614,1.5249,228.68,228.5,20.24379066]
[1733733375810,20.0,228.66,228.5,20.24379066]
[1733733375981,20.0,228.66,228.51,0.65620537]
[1733733376331,20.0,228.66,228.45,0.35614547]
[1733733376332,20.0,228.66,228.47,20.89998693]
[1733733376678,20.0,228.66,228.46,20.24379066]
[1733733376984,20.0,228.64,228.46,20.24379066]
[1733733377504,20.0,228.64,228.45,0.35614547]
[1733733378795,1.5615,228.63,228.45,0.35614547]
[1733733378989,20.0,228.59,228.45,0.35614547]
[1733733380114,7.6994,228.58,228.45,0.35614547]
[1733733380311,20.0,228.55,228.45,0.35614547]
[1733733382295,20.0,228.55,228.45,0.27404547]
[1733733382507,20.0,228.55,228.45,0.25344547]
[1733733384939,9.50014912,228.58,228.45,0.25344547]
[1733733385086,7.6994,228.58,228.45,0.25344547]
[1733733385287,7.6994,228.58,228.46,20.24379066]
[1733733385523,7.6994,228.58,228.48,20.24379066]
[1733733385705,7.6994,228.58,228.51,20.24379066]
[1733733386016,26.77177386,228.82,228.53,20.24379066]
[1733733386017,8.0777,228.64,228.53,20.24379066]
[1733733386191,8.0777,228.64,228.54,20.24379066]
[1733733386619,8.0777,228.64,228.56,20.24379066]
[1733733386828,8.0777,228.64,228.57,20.89983485]
[1733733387034,1.6535,228.7,228.57,0.65604419]
[1733733387198,1.6535,228.7,228.54,20.24379066]
[1733733387515,1.6535,228.7,228.53,20.24379066]
[1733733387705,1.6535,228.7,228.54,0.65612572]
[1733733387892,1.6535,228.7,228.51,20.24379066]
[1733733388114,1.6535,228.7,228.45,0.25344547]
[1733733388416,6.1324,228.69,228.45,0.25344547]
[1733733388618,1.80299557,228.73,228.45,0.25344547]
[1733733388619,7.6906,228.67,228.45,0.25344547]
[1733733388917,20.0,228.64,228.45,0.25344547]
[1733733389823,1.5418,228.63,228.45,0.25344547]
[1733733390315,20.0,228.59,228.45,0.25344547]
[1733733391024,1.6454,228.58,228.45,0.25344547]
[1733733398129,23.776884,228.57,228.45,0.25344547]
[1733733398351,20.0,228.54,228.45,0.25344547]
[1733733399215,1.6454,228.58,228.45,0.25344547]
[1733733400059,20.0,228.54,228.45,0.25344547]
[1733733401041,20.0,228.5,228.45,0.25344547]
[1733733401238,20.0,228.46,228.33,0.65661626]
[1733733401408,20.0,228.46,228.32,0.65678435]
[1733733402151,1.539,228.49,228.32,20.90057501]
[1733733402334,1.539,228.49,228.33,20.24379066]
[1733733402522,1.539,228.49,228.29,0.69300411]
[1733733402842,1.539,228.49,228.31,20.24379066]
[1733733403046,1.539,228.49,228.29,20.93686121]
[1733733403352,20.0,228.45,228.29,20.93686121]
[1733733403556,20.0,228.45,228.31,20.24379066]
[1733733403856,20.0,228.45,228.32,0.65678406]
[1733733404019,20.0,228.45,228.31,0.65682038]
[1733733404219,20.0,228.45,228.31,20.90061104]
[1733733404420,20.0,228.45,228.32,20.24379066]
[1733733404666,20.0,228.45,228.33,0.65672237]
[1733733405147,20.0,228.45,228.31,0.65676411]
[1733733405330,20.0,228.45,228.29,20.28011198]
[1733733405521,20.0,228.45,228.3,0.65688562]
[1733733405933,20.0,228.45,228.3,20.90067628]
[1733733406138,20.0,228.45,228.29,0.03632132]
[1733733406348,20.0,228.41,228.29,0.03632132]
[1733733407043,20.0,228.37,228.29,0.03632132]
[1733733408636,20.0,228.37,228.29,20.28011198]
[1733733408827,20.0,228.37,228.3,0.65687047]
[1733733409022,20.0,228.37,228.29,20.28011198]
[1733733409222,20.0,228.37,228.29,0.03632132]
[1733733410932,6.5243,228.4,228.3,20.24379066]
[1733733411137,6.5243,228.4,228.29,0.69314536]
[1733733411545,6.5243,228.4,228.29,0.03632132]
[1733733413055,20.0,228.37,228.29,0.03632132]
[1733733413559,6.5243,228.4,228.29,12.70558506]
[1733733413760,6.5243,228.4,228.3,0.65681631]
[1733733414371,3.25162586,228.44,228.32,12.66926374]
[1733733414656,3.25162586,228.44,228.33,0.65667917]
[1733733414857,3.25162586,228.44,228.31,0.65670761]
[1733733415593,20.0,228.43,228.31,0.65670761]
[1733733417435,20.0,228.43,228.29,0.03632132]
[1733733417929,20.0,228.43,228.29,0.69314831]
[1733733420845,20.0,228.43,228.29,0.03632132]
[1733733422484,20.0,228.39,228.29,0.03632132]
[1733733425171,21.80252286,228.39,228.29,0.03632132]
[1733733428067,8.0631,228.38,228.29,0.03632132]
[1733733428368,20.0,228.35,228.29,0.03632132]
[1733733430038,8.0631,228.38,228.29,0.03632132]
[1733733430550,8.0631,228.38,228.29,0.69319819]
[1733733431649,8.0631,228.38,228.29,0.03632132]
[1733733432275,1.5686,228.38,228.29,0.69311676]
[1733733433085,7.934,228.43,228.3,12.66926374]
[1733733433274,1.6142,228.43,228.31,0.6566538]
[1733733433593,1.6122,228.48,228.32,12.66926374]
[1733733433763,1.6122,228.48,228.33,0.65656994]
[1733733433964,1.6122,228.48,228.35,12.66926374]
[1733733434166,1.6122,228.48,228.36,0.65652072]
[1733733434855,1.6122,228.48,228.32,0.65649016]
[1733733435394,20.0,228.46,228.29,0.6931313]
[1733733435558,20.0,228.46,228.3,0.65669927]
[1733733435757,20.0,228.46,228.31,12.66926374]
[1733733435959,20.0,228.46,228.32,0.65665338]
[1733733436561,1.6122,228.48,228.32,13.32591712]
[1733733436777,1.6122,228.48,228.33,36.44614774]
[1733733436968,1.6122,228.48,228.34,0.65657325]
[1733733437358,1.6122,228.48,228.33,12.66926374]
[1733733437557,1.6122,228.48,228.34,0.65657131]
[1733733438287,0.5,228.47,228.34,0.65657131]